bitfinex/quotes_ETHUSD_20250807
["timestamp","ask_amount","ask_price","bid_price","bid_amount"]
[1754585322941,1.11120001,3798.3,3798.2,6.2073837]
[1754585323235,0.55000001,3798.3,3798.2,8.84020977]
[1754585323437,0.55000001,3798.3,3798.2,6.3393837]
[1754585323954,0.55000001,3798.3,3798.2,8.97220977]
[1754585324272,0.002,3798.7,3798.6,2.63254883]
[1754585324471,0.002,3798.7,3798.6,3.02780371]
[1754585324472,1e-08,3798.7,3798.6,3.02780371]
[1754585324635,1e-08,3798.7,3798.6,10.27576799]
[1754585324836,1e-08,3798.7,3798.6,10.24944251]
[1754585325074,1e-08,3799.1,3798.9,2.63234094]
[1754585325236,1e-08,3799.1,3799.0,2.65859436]
[1754585325442,1e-08,3799.1,3799.0,8.82113307]
[1754585325671,1e-08,3799.1,3799.0,9.85451036]
[1754585325833,1e-08,3799.1,3799.0,14.64951036]
[1754585326032,1e-08,3799.1,3799.0,9.98651036]
[1754585326458,1e-08,3799.1,3799.0,8.92681036]
[1754585326867,1e-08,3799.1,3799.0,9.98651036]
[1754585327071,1e-08,3799.1,3799.0,16.03839549]
[1754585327234,1e-08,3799.1,3799.0,14.77651036]
[1754585327895,1e-08,3799.1,3799.0,14.64451036]
[1754585328033,1e-08,3799.1,3799.0,14.77651036]
[1754585328433,1e-08,3799.1,3799.0,14.77051036]
[1754585329437,1e-08,3799.1,3799.0,17.77051036]
[1754585329751,1e-08,3799.1,3799.0,19.81079549]
[1754585330152,1e-08,3799.1,3799.0,15.02679549]
[1754585330548,1e-08,3799.1,3799.0,19.66779549]
[1754585330879,0.5612,3801.3,3801.1,2.63081482]
[1754585331175,0.5612,3801.3,3799.0,14.03552384]
[1754585331176,0.55,3801.2,3800.9,2.63093566]
[1754585331379,0.55,3801.0,3800.8,2.63097095]
[1754585331673,0.55,3801.0,3800.2,0.4623]
[1754585331674,0.5612,3800.9,3800.7,2.63108648]
[1754585331878,0.5612,3800.9,3800.8,2.63102504]
[1754585331879,1.1112,3800.9,3800.8,2.63102504]
[1754585332077,0.55,3800.9,3800.6,2.63109684]
[1754585332384,2.63062511,3801.4,3800.7,2.63109427]
[1754585332385,0.55,3801.3,3800.7,2.63109427]
[1754585332690,2.63008468,3802.2,3800.2,5.94116753]
[1754585332691,1.0221,3801.2,3800.2,5.94116753]
[1754585332836,1.0221,3801.2,3800.7,2.63107727]
[1754585332837,0.55,3801.1,3800.7,2.63107727]
[1754585333036,0.55,3801.1,3800.2,5.94116753]
[1754585333241,0.55,3801.1,3800.7,2.63108775]
[1754585333443,0.5612,3801.2,3800.2,5.94116753]
[1754585333444,0.55,3800.9,3800.2,5.94116753]
[1754585333636,0.0196714,3801.2,3800.2,5.94116753]
[1754585333637,2.63121747,3800.6,3800.2,5.94116753]
[1754585333890,0.55,3800.4,3800.2,5.94116753]
[1754585334175,0.5612,3800.3,3800.2,5.94116753]
[1754585334478,1.5721,3800.3,3800.2,5.94116753]
[1754585334875,4.2034712,3800.3,3800.2,5.94116753]
[1754585335245,7.2034712,3800.3,3800.2,5.39116753]
[1754585335445,7.2034712,3800.3,3800.2,1e-08]
[1754585337463,7.2034712,3800.3,3798.1,2.63289517]
[1754585337464,0.55,3798.6,3798.1,2.63287953]
[1754585337659,0.55,3798.6,3797.5,2.63331138]
[1754585337864,0.0196714,3798.5,3797.8,2.63307964]
[1754585338074,0.0196714,3798.5,3797.9,2.63298124]
[1754585338280,0.0196714,3798.5,3797.3,0.4623]
[1754585338281,0.0196714,3798.5,3797.4,2.63338073]
[1754585338465,0.55,3798.6,3797.5,2.63331138]
[1754585338675,0.5696714,3798.6,3797.8,2.63304506]
[1754585339001,0.5696714,3798.6,3797.9,2.63299856]
[1754585339295,0.5696714,3798.6,3798.0,2.63291848]
[1754585339496,3.20227672,3798.6,3797.9,2.63302055]
[1754585339801,3.20227672,3798.6,3797.3,1.16051021]
[1754585339802,3.20227672,3798.6,3797.3,0.69821021]
[1754585339803,1.0602,3798.5,3797.3,0.69821021]
[1754585340009,1.0602,3798.5,3796.1,5.86941738]
[1754585340010,0.55,3797.8,3796.9,2.63372751]
[1754585340209,3.0,3798.8,3796.6,0.94408377]
[1754585340210,0.6091,3797.7,3796.6,2.63387585]
[1754585340386,5.294,3797.6,3796.7,0.69821021]
[1754585340586,0.132,3797.0,3796.6,0.69821021]
[1754585340776,0.132,3797.0,3796.7,3.80681856]
[1754585341109,0.132,3797.0,3796.5,0.132]
[1754585341110,0.132,3797.0,3796.6,0.69821021]
[1754585341299,0.6091,3798.2,3796.9,0.132]
[1754585341499,0.132,3797.8,3797.7,2.6331727]
[1754585341712,0.132,3797.8,3797.4,2.63338073]
[1754585341891,0.55,3797.7,3797.6,2.63324204]
[1754585342214,2.63214374,3799.2,3797.6,1.76944896]
[1754585342426,0.6091,3799.3,3798.0,2.76495923]
[1754585342427,0.132,3798.6,3798.0,2.76495923]
[1754585342577,7.37020877,3799.1,3797.2,7.37150221]
[1754585342578,2.63289033,3798.2,3797.5,0.70452326]
[1754585342778,0.55,3797.8,3797.1,0.70452326]
[1754585343099,0.132,3797.9,3797.8,2.63310337]
[1754585343286,0.6091,3799.5,3797.8,1.0633]
[1754585343487,4.738,3799.4,3797.9,2.63303404]
[1754585343733,0.132,3798.9,3798.8,2.63241023]
[1754585343902,0.132,3798.9,3798.3,0.132]
[1754585343903,0.132,3799.2,3799.1,2.63220236]
[1754585344101,0.132,3799.2,3798.4,0.5885]
[1754585344102,5.3461,3799.8,3799.3,2.63199781]
[1754585344412,0.002,3800.3,3799.1,2.76418847]
[1754585344413,4.735,3800.0,3799.1,2.76418847]
[1754585344730,4.735,3800.0,3798.8,0.132]
[1754585344731,0.1312,3799.4,3798.8,0.132]
[1754585344908,0.55,3799.3,3799.2,2.63213308]
[1754585345088,0.55,3799.3,3798.8,2.764347]
[1754585345275,0.55,3799.3,3798.8,0.132]
[1754585345683,14.5,3799.2,3799.0,2.6322054]
[1754585345917,0.55,3799.3,3798.8,0.132]
[1754585346123,4.8602,3799.9,3799.1,1.1953]
[1754585346325,4.8602,3799.9,3799.7,0.1312]
[1754585346326,4.729,3799.9,3799.7,0.1312]
[1754585346533,4.729,3799.9,3799.2,2.63207395]
[1754585346825,0.55,3799.6,3799.5,2.63192525]
[1754585347025,4.727,3800.1,3799.9,2.63162675]
[1754585347228,4.727,3800.1,3799.6,2.63185598]
[1754585347229,4.8582,3800.1,3799.6,2.63182292]
[1754585347394,14.5,3800.0,3799.6,2.63185598]
[1754585347590,15.1091,3800.0,3799.2,2.63208318]
[1754585347795,1.2903,3799.9,3799.3,0.132]
[1754585348194,1.2903,3799.9,3799.1,2.63219181]
[1754585348195,0.55,3799.6,3799.4,2.63199452]
[1754585348504,0.002,3800.2,3799.5,0.1312]
[1754585348505,0.1332,3800.2,3799.5,0.1312]
[1754585348691,0.1332,3800.2,3799.8,0.1312]
[1754585348692,4.721,3800.2,3799.8,0.1312]
[1754585348891,14.5,3800.1,3799.8,0.606]
[1754585349121,14.5,3800.1,3800.0,2.63157894]
[1754585349531,14.5,3800.1,3799.3,3.22049452]
[1754585349532,0.55,3800.0,3799.4,2.63199452]
[1754585349737,0.55,3800.0,3799.6,0.1312]
[1754585349889,0.55,3800.0,3799.9,2.6316482]
[1754585350231,15.05,3800.0,3799.6,0.1312]
[1754585350415,15.05,3800.0,3799.9,2.6316482]
[1754585350727,15.05,3800.0,3799.7,2.6317311]
[1754585351020,15.05,3800.0,3799.6,2.76304511]
[1754585351327,15.05,3800.0,3799.9,2.6316482]
[1754585351532,14.5,3800.0,3799.9,2.6316482]
[1754585351709,4.709,3800.2,3800.1,2.63150969]
[1754585351882,4.709,3800.2,3799.9,3.2376482]
[1754585351883,0.55,3800.1,3799.9,0.1312]
[1754585352088,14.5,3800.0,3799.7,2.63178672]
[1754585352310,1.1787714,3799.9,3799.4,3.33863622]
[1754585352620,0.1312,3799.9,3799.5,2.63191616]
[1754585352787,0.1312,3799.9,3799.3,0.83869498]
[1754585352988,14.5,3799.8,3799.7,2.63173538]
[1754585353186,14.5,3799.8,3799.7,3.69503538]
[1754585353608,14.5,3799.8,3799.7,2.63173538]
[1754585353817,4.697,3800.0,3799.9,2.6316482]
[1754585354219,4.697,3800.0,3799.8,0.1312]
[1754585354220,4.697,3800.0,3799.8,2.63169887]
[1754585354420,4.697,3800.0,3799.2,1.53258377]
[1754585354421,15.7903,3799.9,3799.2,2.63207607]
[1754585354601,0.55,3799.7,3799.2,0.70669498]
[1754585354796,0.55,3799.7,3799.2,0.4748]
[1754585355291,19.193,3799.6,3799.3,0.4748]
[1754585355492,19.193,3799.6,3798.5,1.41612565]
[1754585355493,19.193,3799.6,3799.5,2.63192525]
[1754585355723,4.693,3799.6,3799.5,1.1945]
[1754585355924,4.693,3799.6,3799.0,1.29519498]
[1754585356229,14.5,3799.5,3799.3,2.632044]
[1754585356522,14.5,3799.5,3799.4,2.63199452]
[1754585356926,14.5,3799.5,3799.3,2.63204569]
[1754585357429,14.5,3799.5,3799.2,0.132]
[1754585357430,14.5,3799.5,3799.4,2.63199452]
[1754585357624,14.5,3799.5,3799.2,2.76412188]
[1754585357808,14.5,3799.5,3799.4,2.63199452]
[1754585358190,14.5,3799.5,3799.2,0.132]
[1754585358525,14.5,3799.5,3798.9,2.63229247]
[1754585358526,1.1591,3799.4,3798.9,2.63229247]
[1754585358751,1.2903,3799.4,3799.1,2.63215139]
[1754585358891,1.2903,3799.4,3798.9,0.132]
[1754585359093,14.5,3799.3,3798.9,0.132]
[1754585359312,4.674,3799.2,3798.9,0.132]
[1754585359498,4.674,3799.2,3799.1,2.63220236]
[1754585359692,4.674,3799.2,3799.0,0.4748]
[1754585359934,4.674,3799.2,3799.1,2.63220236]
[1754585360234,4.674,3799.2,3798.9,0.132]
[1754585360427,4.674,3799.2,3799.1,2.63220236]
[1754585360627,19.174,3799.2,3799.1,0.132]
[1754585360835,19.174,3799.2,3799.1,2.76420236]
[1754585361291,4.674,3799.2,3799.1,3.23900236]
[1754585361497,4.674,3799.2,3799.1,3.82750236]
[1754585361698,4.674,3799.2,3799.1,3.23900236]
[1754585361929,0.1312,3799.9,3799.1,3.82747333]
[1754585362110,4.657,3799.8,3799.7,2.63178672]
[1754585362316,4.656,3799.8,3799.7,3.10658672]
[1754585362517,4.656,3799.8,3799.7,0.1312]
[1754585362719,4.656,3799.8,3799.7,3.23778672]
[1754585363101,4.656,3799.8,3799.7,3.82628672]
[1754585363297,4.653,3800.2,3800.1,2.63150969]
[1754585363497,4.653,3800.2,3799.7,3.82628672]
[1754585363498,0.002,3800.2,3799.7,0.1312]
[1754585363746,0.002,3800.2,3800.1,2.76270969]
[1754585364251,0.002,3800.2,3800.1,0.1312]
[1754585364814,0.002,3800.2,3799.8,0.1312]
[1754585364815,0.55,3800.1,3799.8,0.1312]
[1754585365146,0.55,3800.1,3799.6,2.7630401]
[1754585365147,5.2521,3800.0,3799.6,2.7630401]
[1754585365358,1.1591,3799.9,3798.8,0.4748]
[1754585365559,0.55,3799.6,3799.3,2.63200414]
[1754585365857,0.55,3799.4,3799.1,2.63215516]
[1754585366014,5.191,3799.5,3799.4,2.63199452]
[1754585366202,5.191,3799.5,3798.5,2.63259946]
[1754585366203,0.55,3799.1,3798.5,2.63259946]
[1754585366403,0.0196714,3800.0,3797.9,2.6330251]
[1754585366404,0.002,3800.2,3799.7,2.63172994]
[1754585366618,0.002,3800.2,3798.2,4.637]
[1754585366619,0.552,3800.2,3799.1,0.4748]
[1754585366818,0.55,3799.8,3799.0,2.63221799]
[1754585367157,0.55,3799.6,3798.8,2.63235069]
[1754585367336,0.55,3799.4,3798.9,2.63227283]
[1754585367540,0.55,3799.4,3799.0,2.63225565]
[1754585367541,0.55,3799.2,3799.0,2.63225565]
[1754585367741,15.05,3799.1,3799.0,2.63225565]
[1754585367945,0.55,3799.0,3798.1,3.69616368]
[1754585368147,0.55,3799.0,3798.1,0.4748]
[1754585368148,0.55,3798.8,3798.1,0.4748]
[1754585368320,0.55,3798.8,3797.6,0.6048]
[1754585368518,0.55,3798.8,3798.6,2.63253628]
[1754585368740,15.05,3798.7,3798.6,2.63253628]
[1754585369141,0.55,3798.6,3798.5,2.63259355]
[1754585369755,1.1463,3798.6,3797.5,0.4665]
[1754585369953,5.188,3798.5,3798.4,2.63266037]
[1754585370331,14.5,3798.7,3798.6,2.63254883]
[1754585370543,4.634,3798.8,3798.6,0.4665]
[1754585370742,4.634,3798.8,3798.7,2.63247953]
[1754585371062,4.634,3798.8,3798.7,3.09897953]
[1754585371283,14.5,3799.4,3799.3,2.6320638]
[1754585371472,19.133,3799.4,3799.3,2.6320638]
[1754585371956,19.133,3799.4,3798.1,0.4665]
[1754585371957,0.55,3799.3,3798.1,0.4665]
[1754585372161,0.55,3799.3,3798.9,2.63228014]
[1754585372338,0.55,3799.3,3798.5,2.63256795]
[1754585372339,0.55,3799.1,3798.5,2.63256795]
[1754585372526,0.55,3799.1,3797.7,0.6048]
[1754585372527,5.2263,3799.0,3797.7,0.6048]
[1754585372856,5.2263,3799.0,3798.7,2.63241425]
[1754585373152,0.55,3798.8,3798.4,2.63268261]
[1754585373321,0.55,3798.8,3798.7,2.63247953]
[1754585374157,14.5,3798.9,3798.8,2.63241023]
[1754585374456,4.62,3798.9,3798.8,2.63241023]
[1754585374636,4.62,3798.9,3798.8,3.09891023]
[1754585375463,4.62,3798.9,3798.8,2.63241023]
[1754585375625,5.17,3798.9,3798.8,2.63241023]
[1754585375957,5.7663,3798.9,3798.8,2.63241023]
[1754585376152,0.55,3798.9,3798.8,2.63241023]
[1754585376355,5.163,3798.9,3798.8,2.63241023]
[1754585377574,5.163,3798.9,3798.6,2.63250148]
[1754585377575,0.55,3798.8,3798.6,2.63250148]
[1754585377760,0.682,3798.8,3798.7,2.63247953]
[1754585377919,4.604,3798.8,3798.7,2.63247953]
[1754585378123,19.104,3798.8,3798.7,2.63247953]
[1754585378558,19.103,3798.8,3798.7,3.09897953]
[1754585379059,4.603,3798.8,3798.7,2.63247953]
[1754585379466,5.153,3798.8,3798.7,2.63247953]
[1754585379836,5.153,3798.8,3798.6,2.63250291]
[1754585380050,15.0963,3799.1,3798.4,2.76467613]
[1754585380051,0.5963,3799.1,3799.0,2.63227165]
[1754585380245,5.145,3799.1,3799.0,2.63227165]
[1754585380440,19.095,3799.1,3799.0,2.63227165]
[1754585380829,0.55,3799.0,3798.9,2.63234094]
[1754585381493,0.5963,3799.5,3798.7,2.63247065]
[1754585381661,0.55,3799.2,3799.1,2.63220236]
[1754585381861,19.638,3799.2,3799.1,2.63220236]
[1754585382056,5.138,3799.2,3799.1,2.63220236]
[1754585383767,14.5,3799.3,3799.2,2.63213308]
[1754585383984,19.628,3799.3,3799.2,2.63213308]
[1754585384192,0.55,3799.2,3799.1,2.63220236]
[1754585384415,1.1463,3799.2,3799.0,2.63224812]
[1754585384707,1.1463,3799.2,3799.0,2.63227165]
[1754585384708,1.1463,3799.1,3799.0,2.63227165]
[1754585384855,0.55,3799.1,3799.0,2.63227165]
[1754585385055,5.124,3799.1,3799.0,3.09877165]
[1754585385310,5.124,3799.1,3799.0,2.63227165]
[1754585385515,14.5,3799.3,3799.2,2.63213308]
[1754585385804,19.621,3799.3,3799.2,3.09863308]
[1754585386003,1.1483,3799.9,3799.8,2.63171745]
[1754585386203,0.55,3799.8,3799.7,2.63178093]
[1754585386616,0.002,3799.9,3799.8,2.63171745]
[1754585386910,4.569,3799.9,3799.8,3.09821745]
[1754585387474,4.569,3799.9,3799.8,2.63171745]
[1754585387995,4.569,3799.9,3799.4,0.4665]
[1754585388193,5.119,3799.9,3799.8,2.63171745]
[1754585388395,0.55,3799.8,3799.5,2.63188929]
[1754585388694,0.55,3799.8,3798.9,0.4665]
[1754585388695,0.55,3799.6,3798.9,0.4665]
[1754585388898,0.55,3799.4,3799.3,2.63201096]
[1754585389103,14.5,3799.8,3799.1,2.63214587]
[1754585389104,14.5,3799.8,3799.7,2.63178672]
[1754585389400,0.002,3799.9,3799.8,2.63171745]
[1754585389703,4.559,3799.9,3799.8,3.09821745]
[1754585389869,4.559,3799.9,3799.8,2.63171745]
[1754585389870,19.059,3799.9,3799.8,2.63171745]
[1754585390262,4.559,3799.9,3799.5,0.4665]
[1754585390468,4.559,3799.9,3799.8,2.63171745]
[1754585390469,5.7053,3799.9,3799.8,2.63171745]
[1754585390687,0.002,3799.9,3799.8,3.70301745]
[1754585391002,0.002,3800.3,3800.1,2.63150969]
[1754585391610,0.002,3800.3,3800.1,3.70280969]
[1754585391811,0.002,3800.3,3800.1,4.59942159]
[1754585393070,1e-08,3800.3,3800.2,2.63144045]
[1754585393411,1e-08,3800.3,3800.2,3.70274045]
[1754585395483,1e-08,3800.6,3800.5,2.63123273]
[1754585395910,1e-08,3800.9,3800.8,2.63102504]
[1754585396108,0.002,3801.4,3800.8,2.63102504]
[1754585396109,1e-08,3801.4,3801.3,2.63067897]
[1754585396475,1e-08,3801.4,3801.3,2.65698575]
[1754585396626,1e-08,3801.4,3801.3,2.76187897]
[1754585396825,1e-08,3801.4,3801.3,3.76764326]
[1754585397038,1e-08,3801.4,3801.3,4.37244326]
[1754585397341,0.002,3802.4,3802.3,2.62998711]
[1754585397547,0.002,3802.4,3802.3,3.09648711]
[1754585397841,0.002,3802.4,3802.3,2.76118711]
[1754585398004,5.1243,3802.4,3802.3,2.76118711]
[1754585398337,0.002,3802.4,3802.3,2.62998711]
[1754585398636,5.077,3802.4,3802.3,2.62998711]
[1754585399143,0.55,3802.3,3802.2,2.76124521]
[1754585399433,0.55,3802.3,3802.2,2.63004521]
[1754585399609,1.1796,3802.3,3802.2,2.63004521]
[1754585399823,4.527,3802.4,3802.2,3.16918548]
[1754585399824,0.002,3802.4,3802.2,3.16918548]
[1754585399985,0.002,3802.4,3802.3,3.75408698]
[1754585400197,1e-08,3802.4,3802.3,3.75408698]
[1754585400399,1e-08,3802.4,3802.3,8.27008698]
[1754585400648,1e-08,3802.4,3802.3,3.09048711]
[1754585400946,1e-08,3802.4,3802.3,4.62989012]
[1754585401098,1e-08,3802.6,3802.5,2.62984878]
[1754585401295,1e-08,3802.6,3802.5,2.76104878]
[1754585401495,1e-08,3802.6,3802.5,3.85884878]
[1754585401699,1e-08,3802.6,3802.5,18.64928207]
[1754585403004,1e-08,3802.6,3802.5,4.72896122]
[1754585403199,1e-08,3802.6,3802.5,2.76104878]
[1754585403443,1e-08,3802.6,3802.5,3.24784726]
[1754585403738,14.5,3803.7,3803.6,2.62908823]
[1754585403739,0.55,3803.7,3803.6,2.62908823]
[1754585403974,0.55,3803.6,3802.7,0.0262971]
[1754585404102,0.1312,3803.5,3802.3,0.4605]
[1754585404303,0.6296,3803.4,3803.3,2.62923615]
[1754585404503,0.6296,3803.4,3802.3,1.07449403]
[1754585404504,0.55,3803.3,3801.7,4.503]
[1754585404703,19.003,3803.7,3802.1,0.1312]
[1754585404704,0.55,3802.7,3802.1,0.1312]
[1754585404924,0.55,3802.5,3802.4,2.62991794]
[1754585405111,0.1312,3802.8,3802.7,2.62971046]
[1754585405322,0.1312,3802.8,3801.5,3.09103726]
[1754585405323,15.6796,3802.8,3802.0,2.63014671]
[1754585405517,15.6796,3802.8,3802.7,2.62971046]
[1754585405518,15.1812,3802.8,3802.7,2.62971046]
[1754585405723,15.05,3802.8,3802.7,2.62971046]
[1754585405909,14.5,3802.8,3802.7,2.62971046]
[1754585406335,1.1195,3803.3,3802.7,2.62971046]
[1754585406336,0.6812,3803.3,3803.2,2.62936474]
[1754585406652,1.1796,3803.3,3803.2,2.62936474]
[1754585406952,1.1796,3803.3,3802.0,2.63019463]
[1754585406953,0.55,3803.2,3802.0,2.63019463]
[1754585407123,15.5679,3803.3,3803.0,2.62950302]
[1754585407124,0.6296,3803.1,3803.0,2.62950302]
[1754585407325,1.1796,3803.1,3803.0,2.62950302]
[1754585407526,0.1312,3803.4,3803.3,2.62929561]
[1754585407729,18.996,3803.4,3803.3,2.76049561]
[1754585407933,0.002,3803.6,3803.5,2.62915735]
[1754585408128,0.002,3803.6,3803.5,2.76035735]
[1754585408353,0.002,3803.6,3803.5,3.80587265]
[1754585408530,0.002,3803.6,3803.5,3.34537265]
[1754585408853,0.002,3803.6,3803.5,2.76035735]
[1754585409357,0.002,3803.6,3803.5,3.22085735]
[1754585409725,0.002,3803.6,3803.5,2.76035735]
[1754585410242,0.002,3803.6,3803.5,3.24714892]
[1754585410419,1e-08,3803.6,3803.5,3.88444892]
[1754585410624,1e-08,3803.6,3803.5,4.5095318]
[1754585411028,1e-08,3803.6,3803.5,4.53582337]
[1754585411720,1e-08,3803.8,3803.7,2.62901911]
[1754585411921,1e-08,3803.8,3803.7,8.36014355]
[1754585412142,1e-08,3803.8,3803.7,9.43165336]
[1754585412345,1e-08,3803.8,3803.7,4.94665336]
[1754585412662,1e-08,3803.8,3803.7,9.45694355]
[1754585412842,1e-08,3803.8,3803.7,9.43065336]
[1754585413219,1e-08,3803.8,3803.7,22.71367421]
[1754585413522,0.002,3804.4,3804.3,2.62860447]
[1754585413523,1e-08,3804.4,3804.3,2.62860447]
[1754585413757,1e-08,3804.4,3804.3,7.13389051]
[1754585413958,1e-08,3804.4,3804.3,7.56810447]
[1754585414163,1e-08,3804.4,3804.3,3.85760447]
[1754585414359,1e-08,3804.4,3804.3,10.31353608]
[1754585414665,1e-08,3804.4,3804.3,10.31253608]
[1754585415232,1e-08,3804.4,3804.3,10.30853608]
[1754585415438,1e-08,3804.4,3804.3,5.83453608]
[1754585415675,1e-08,3804.4,3804.3,8.33160447]
[1754585416241,1e-08,3804.4,3804.3,3.22030447]
[1754585416437,1e-08,3804.4,3804.3,7.69030447]
[1754585416633,1e-08,3804.4,3804.3,2.75980447]
[1754585416863,1e-08,3804.4,3804.3,7.22880447]
[1754585417453,1e-08,3804.4,3804.3,2.75980447]
[1754585417731,1e-08,3804.4,3804.3,0.1312]
[1754585417936,1.17960001,3804.4,3804.3,0.1312]
[1754585418155,0.55,3804.3,3804.2,2.62867295]
[1754585418351,1e-08,3804.4,3804.3,2.75980447]
[1754585418787,1e-08,3804.4,3804.3,3.56967974]
[1754585419026,1e-08,3804.4,3804.3,8.70026578]
[1754585419189,1e-08,3804.4,3804.3,8.54277974]
[1754585419493,1e-08,3804.4,3804.3,8.67397974]
[1754585419854,1e-08,3804.4,3804.3,8.03667974]
[1754585420485,1e-08,3804.4,3804.3,7.57417974]
[1754585421044,1e-08,3804.4,3804.3,8.03467974]
[1754585421408,1e-08,3804.4,3804.3,8.67197974]
[1754585421885,1e-08,3804.4,3804.3,4.20697974]
[1754585422057,1e-08,3804.4,3804.3,8.66597974]
[1754585423695,1e-08,3804.4,3804.3,8.02067974]
[1754585424038,1e-08,3804.4,3804.3,8.65797974]
[1754585424377,0.002,3805.6,3805.5,2.62777558]
[1754585424575,0.002,3805.6,3805.5,16.43636536]
[1754585424740,0.002,3805.6,3805.5,2.62777558]
[1754585424940,0.6316,3805.6,3805.5,2.75897558]
[1754585425555,0.55,3805.8,3805.7,2.62762129]
[1754585425976,0.55,3805.8,3805.5,2.75897558]
[1754585425977,0.002,3806.3,3806.0,2.62743037]
[1754585426154,0.002,3806.3,3806.2,2.62729231]
[1754585426355,0.002,3806.3,3806.1,2.62733533]
[1754585426621,0.002,3806.3,3806.2,2.62729231]
[1754585427295,0.002,3806.3,3806.2,2.75849231]
[1754585427658,1.1816,3806.3,3806.2,2.62729231]
[1754585428674,1.1816,3806.3,3806.1,0.1312]
[1754585428675,0.55,3806.2,3806.1,0.1312]
[1754585428979,0.55,3806.2,3805.6,0.40684658]
[1754585428980,1.3031,3806.2,3805.6,2.62768216]
[1754585429182,0.6812,3806.0,3805.8,2.62752146]
[1754585429387,0.6812,3806.0,3805.6,2.62770653]
[1754585429388,0.55,3806.0,3805.9,2.6274994]
[1754585429592,0.55,3806.2,3805.9,2.6274994]
[1754585429746,0.6832,3806.3,3805.7,0.1312]
[1754585429747,0.1332,3806.3,3806.1,2.62736134]
[1754585429948,0.552,3806.3,3806.2,2.62729231]
[1754585430298,0.002,3806.3,3806.2,2.62729231]
[1754585431174,0.002,3806.3,3806.1,2.75856134]
[1754585431175,0.55,3806.2,3806.1,2.75855429]
[1754585431407,0.55,3806.1,3806.0,2.62743037]
[1754585431789,0.552,3806.3,3806.1,2.6273256]
[1754585431996,0.552,3806.3,3806.1,2.6273387]
[1754585432196,1.1719,3806.2,3806.1,2.6273387]
[1754585432721,0.002,3806.3,3806.2,2.62729231]
[1754585433625,0.002,3806.3,3806.2,3.67579231]
[1754585433827,0.002,3806.3,3806.2,2.62729231]
[1754585434158,0.002,3806.3,3805.6,0.74668822]
[1754585434159,0.55,3806.2,3805.6,0.27588822]
[1754585434274,0.55,3806.2,3805.9,2.62745092]
[1754585434477,0.55,3806.0,3805.6,2.62765711]
[1754585434677,0.55,3806.0,3805.9,2.6274994]
[1754585435107,0.55,3806.1,3806.0,2.62742343]
[1754585435288,0.002,3806.3,3806.2,2.62729231]
[1754585436085,1.1739,3806.3,3806.2,2.62729231]
[1754585436405,0.552,3806.3,3806.2,2.62729231]
[1754585436779,0.002,3806.3,3806.2,2.62729231]
[1754585437895,0.55,3806.2,3805.2,0.36765344]
[1754585438095,5.0835714,3806.1,3805.3,2.62791369]
[1754585438303,0.55,3805.9,3804.8,0.1954073]
[1754585438641,4.442,3806.1,3805.6,2.62770013]
[1754585438642,0.55,3805.7,3805.6,2.62770013]
[1754585438824,1.1719,3805.7,3804.8,0.72656424]
[1754585439022,1.1719,3805.7,3805.6,2.62770653]
[1754585439342,0.55,3805.6,3805.3,2.62784841]
[1754585439496,0.55,3805.6,3804.5,2.62846628]
[1754585439847,0.55,3805.8,3805.3,2.62789821]
[1754585440005,1.1719,3805.8,3805.6,2.6276581]
[1754585440194,1.1719,3805.8,3804.7,0.4708]
[1754585440195,1.1719,3805.8,3805.7,2.62763749]
[1754585440807,1.1719,3805.8,3805.6,2.6276852]
[1754585440808,0.55,3805.8,3805.6,2.6276852]
[1754585441010,0.55,3805.8,3804.8,0.36769663]
[1754585441011,0.55,3805.5,3803.9,0.001]
[1754585441231,0.55,3805.2,3804.4,2.62851652]
[1754585441426,3.55,3805.0,3804.3,2.6285829]
[1754585441605,0.55,3804.8,3804.2,2.62866535]
[1754585441805,0.55,3804.8,3803.9,0.001]
[1754585441806,0.55,3804.6,3803.9,0.001]
[1754585442042,0.55,3804.6,3804.1,2.62874267]
[1754585442212,0.55,3804.6,3803.9,0.001]
[1754585442213,0.55,3804.6,3804.5,2.62846628]
[1754585442544,4.991,3804.6,3804.5,2.62846628]
[1754585442717,4.991,3804.6,3804.4,2.6285275]
[1754585443034,4.991,3804.6,3804.5,2.62846628]
[1754585443239,4.991,3804.6,3803.9,0.001]
[1754585443240,4.991,3804.6,3804.4,2.62853424]
[1754585443536,0.55,3804.4,3804.2,2.62861058]
[1754585443702,0.55,3804.4,3804.0,0.1322]
[1754585443902,0.6812,3804.5,3804.0,0.1322]
[1754585444106,0.6812,3804.5,3804.1,2.62867407]
[1754585444107,0.55,3804.3,3804.1,2.62867407]
[1754585444306,0.55,3804.3,3804.0,0.001]
[1754585444307,0.55,3804.1,3804.0,0.001]
[1754585444764,0.55,3804.1,3803.6,2.76022072]
[1754585444765,0.55,3804.0,3803.6,0.1312]
[1754585444905,0.55,3803.7,3803.6,0.1312]
[1754585445240,0.55,3803.7,3803.5,0.001]
[1754585445241,0.55,3803.6,3803.5,2.63015735]
[1754585445534,7.112,3804.1,3803.5,2.63015735]
[1754585445535,7.662,3804.1,3804.0,2.62881177]
[1754585445733,11.304,3804.1,3804.0,2.62881177]
[1754585445935,0.55,3804.0,3803.9,2.62886878]
[1754585446322,0.55,3804.0,3803.7,0.1312]
[1754585446534,0.55,3804.0,3803.5,0.001]
[1754585446535,0.55,3804.0,3803.6,0.1312]
[1754585446700,0.55,3804.0,3803.7,2.62901911]
[1754585446901,0.55,3804.0,3803.7,2.62900571]
[1754585447099,0.55,3804.0,3803.5,0.001]